Workbook

Sheet Input Sheet
A1: Reservoir Properties
A2: Site name: | I2: Instructions | P2: Distribution Types & Required Inputs | V2: Required Variables for Calculation Methods | AC2: Disclaimer
I3: Enter all known information to the best of your ability. Use the given information (right) to ensure that all required cells are populated for the selected distribution types and desired calculation methods. If bedrock composition is not known, input Quartzite. Default values are generalized estimations. Values tailored to the specifications of a system will more accurately represent a project.
B4: Minimum | C4: Most Likely/Mean | D4: Maximum | E4: Standard Deviation | F4: Distribution type | G4: Unit | V4: Volumetric Method | Y4: Power Density Method | AC4: These assessment tools are written for industry
A5: Area | F5: - | G5: km^2 | V5: Temperature | Y5: Temperature | AC5: professionals and are not substitutes for detailed
A6: Volume | F6: - | G6: km^3 | V6: Area & Thickness | Y6: Area | AC6: feasibility and engineering studies. The estimates
A7: Thickness | F7: - | G7: m | V7: OR | Y7: Tectonic Setting | AC7: provided by the RSAT are simplified outcomes
A8: Temperature | F8: - | G8: C | V8: Volume | AC8: borrowed from published methods. They are neither
A9: Total Mass Flow Rate | F9: - | G9: L/s | AC9: certified nor guaranteed to be accurate. The reported
V10: Flow Rate Method | AC10: results are not comparable to detailed resource
A11: Primary Bedrock Composition | B11: Quartzite | V11: Temperature | AC11: analyses performed by engineering professionals,
A12: Tectonic Setting | B12: Rift | V12: Mass Flow Rate | AC12: and not a substitute for detailed numerical reservoir
AC13: modeling.
A14: Number of Monte Carlo iterations | B14: 1000
A17: Utilization Properties
B19: Default (years) | C19: User input (years)
A20: Project lifetime | B20: 30
A22: Power Generation
C24: Conversion Efficiency
A25: Plant type | C25: Default | D25: User Input
A26: Binary | B26: Min | C26: -
B27: Mean/Most likely | C27: =IF(A26="Steam (dry/flash)", 0.11, IF(A26="Binary", 0.08, IF(C8 >= 180,0.11,IF(C8 < 180,0.08,"Not enough information")))) -> 0.08
B28: Max | C28: -
B29: Standard Deviation | C29: -
B30: Distribution type | C30: Constant
B32: Default | C32: User Input
A33: Abandonment Temperature (C) | B33: =IF(A26="Steam (dry/flash)", 151.831, IF(AND(A26="Binary",C8>=125), 105.36, IF(AND(A26 = "Binary", C8 < 125),70, IF(AND(A26="-",C8 >= 180),151.831, IF(AND(A26="-",C8 < 180,C8 >= 125),105.36,IF(AND(A26="-",C8<125),70,"Not enough information")))))) -> 70
A35: Direct Use
C37: Heat Exchange Efficiency Factor
A38: Use Type | C38: Default | D38: User Input
A39: Greenhouse Heating | B39: Min | C39: =IF(A39=Tables!A205, 0.25, 0.6) -> 0.6
B40: Mean/Most likely | C40: =IF(A39=Tables!A205,0.4, 0.7) -> 0.7
B41: Max | C41: =IF(A39=Tables!A205, 0.5, 0.8) -> 0.8
B42: Standard Deviation
B43: Distribution type | C43: Uniform
B45: Default | C45: User Input
A46: Reference/ambient air temperature (C) | B46: 15
A48: Demand Properties
A50: Direct Use
C52: Utilization/Load Factor
A53: Use Type | C53: Default | D53: User Input
A54: =A39 -> Greenhouse Heating | B54: Min | C54: =IF(A39=Tables!A201,Tables!B201,IF(A39=Tables!A202,Tables!B202,IF(A39=Tables!A203,Tables!B203,IF(A39=Tables!A204,Tables!B204,IF(A39=Tables!A205,Tables!B205,IF(A39=Tables!A206,Tables!B206,"-")))))) -> 0.4
B55: Mean/Most likely | C55: =IF(A39=Tables!A201,Tables!C201,IF(A39=Tables!A202,Tables!C202,IF(A39=Tables!A203,Tables!C203, IF(A39=Tables!A204,Tables!C204,IF(A39=Tables!A205,Tables!C205,IF(A39=Tables!A206,Tables!C206,"-")))))) -> 0.48
B56: Max | C56: =IF(A39=Tables!A201,Tables!D201,IF(A39=Tables!A202,Tables!D202,IF(A39=Tables!A203,Tables!D203,IF(A39=Tables!A204,Tables!D204,IF(A39=Tables!A205,Tables!D205,IF(A39=Tables!A206,Tables!D206,"-")))))) -> 0.5
B57: Standard Deviation | C57: -
B58: Distribution type | C58: Triangular

Sheet Power Results
A1: Volumetric Results | J1: Power Density Results | S1: Flow Rate Results
A3: Mean | B3: =AVERAGE('Monte Carlo Calculations'!V15:V10015) ->  | J3: Mean | K3: =AVERAGE('Monte Carlo Calculations'!W15:W10015) ->  | S3: Mean | T3: =AVERAGE('Monte Carlo Calculations'!X15:X10015) -> 
A4: P90 | B4: =_xlfn.PERCENTILE.INC([0]!vol_power_results,0.1) ->  | J4: P90 | K4: =_xlfn.PERCENTILE.INC([0]!pow_dens_results,0.1) ->  | S4: P90 | T4: =_xlfn.PERCENTILE.INC([0]!flow_power_results,0.1) -> 
A5: P50 | B5: =_xlfn.PERCENTILE.INC([0]!vol_power_results,0.5) ->  | J5: P50 | K5: =_xlfn.PERCENTILE.INC([0]!pow_dens_results,0.5) ->  | S5: P50 | T5: =_xlfn.PERCENTILE.INC([0]!flow_power_results,0.5) -> 
A6: P10 | B6: =_xlfn.PERCENTILE.INC([0]!vol_power_results,0.9) ->  | J6: P10 | K6: =_xlfn.PERCENTILE.INC([0]!pow_dens_results,0.9) ->  | S6: P10 | T6: =_xlfn.PERCENTILE.INC([0]!flow_power_results,0.9) -> 
A27: Comparison of Resource Size Estimates for Power Generation

Sheet Direct Use Results
A1: Volumetric Results | J1: Flow Rate Results
A3: Mean | B3: =AVERAGE([0]!vol_DU_results) ->  | J3: Mean | K3: =AVERAGE([0]!flow_DU_results) -> 
A4: P90 | B4: =_xlfn.PERCENTILE.INC([0]!vol_DU_results,0.1) ->  | J4: P90 | K4: =_xlfn.PERCENTILE.INC([0]!flow_DU_results,0.1) -> 
A5: P50 | B5: =_xlfn.PERCENTILE.INC([0]!vol_DU_results,0.5) ->  | J5: P50 | K5: =_xlfn.PERCENTILE.INC([0]!flow_DU_results,0.5) -> 
A6: P10 | B6: =_xlfn.PERCENTILE.INC([0]!vol_DU_results,0.9) ->  | J6: P10 | K6: =_xlfn.PERCENTILE.INC([0]!flow_DU_results,0.9) -> 
A27: Comparison of Resource Size Estimates for Direct Use

Sheet Cascaded Use Potential
A1: Resource Size Potential for Cascaded Use Project
B3: Volumetric Method | G3: Flow Rate Method
B4: Power (MWe) | C4: Direct Use (MWt) | D4: Difference (Cascaded Use) (MWt) | G4: Power (MWe) | H4: Direct Use (MWt) | I4: Difference (Cascaded Use) (MWt)
A5: P90 | B5: =_xlfn.PERCENTILE.INC('Monte Carlo Calculations'!V12:V10012,0.1) ->  | C5: =_xlfn.PERCENTILE.INC([0]!vol_DU_results,0.1) ->  | D5: =C5-B5 ->  | F5: P90 | G5: =_xlfn.PERCENTILE.INC('Monte Carlo Calculations'!X12:X10012,0.1) ->  | H5: =_xlfn.PERCENTILE.INC([0]!flow_DU_results,0.1) ->  | I5: =H5-G5 -> 
A6: P50 | B6: =_xlfn.PERCENTILE.INC('Monte Carlo Calculations'!V13:V10013,0.5) ->  | C6: =_xlfn.PERCENTILE.INC([0]!vol_DU_results,0.5) ->  | D6: =C6-B6 ->  | F6: P50 | G6: =_xlfn.PERCENTILE.INC('Monte Carlo Calculations'!X13:X10013,0.5) ->  | H6: =_xlfn.PERCENTILE.INC([0]!flow_DU_results,0.5) ->  | I6: =H6-G6 -> 
A7: P10 | B7: =_xlfn.PERCENTILE.INC('Monte Carlo Calculations'!V14:V10014,0.9) ->  | C7: =_xlfn.PERCENTILE.INC([0]!vol_DU_results,0.9) ->  | D7: =C7-B7 ->  | F7: P10 | G7: =_xlfn.PERCENTILE.INC('Monte Carlo Calculations'!X14:X10014,0.9) ->  | H7: =_xlfn.PERCENTILE.INC([0]!flow_DU_results,0.9) ->  | I7: =H7-G7 -> 

Sheet Equation inputs+defaults
A1: Input Sheet
A2: Reservoir_Properties | B2: Units | C2: Min | D2: Most_Likely | E2: Max | F2: Standar_Desviation | G2: Distribution_Type
A3: ReservoirArea | B3: km2 | C3: ='Input Sheet'!B5 -> 0 | D3: ='Input Sheet'!C5 -> 0 | E3: ='Input Sheet'!D5 -> 0 | F3: ='Input Sheet'!E5 -> 0 | G3: =IF('Input Sheet'!F5="Triangular","T",IF('Input Sheet'!F5="Constant","C",IF('Input Sheet'!F5="Uniform","U",IF('Input Sheet'!F5="Normal","N",IF('Input Sheet'!F5="Lognormal","L","No distribution selected."))))) -> No distribution selected.
A4: Thickness | B4: m | C4: ='Input Sheet'!B7 -> 0 | D4: ='Input Sheet'!C7 -> 0 | E4: ='Input Sheet'!D7 -> 0 | F4: ='Input Sheet'!E7 -> 0 | G4: =IF('Input Sheet'!F7="Triangular","T",IF('Input Sheet'!F7="Constant","C",IF('Input Sheet'!F7="Uniform","U",IF('Input Sheet'!F7="Normal","N",IF('Input Sheet'!F7="Lognormal","L","No distribution selected."))))) -> No distribution selected.
A5: Volume | B5: km3 | C5: ='Input Sheet'!B6 -> 0 | D5: ='Input Sheet'!C6 -> 0 | E5: ='Input Sheet'!D6 -> 0 | F5: ='Input Sheet'!E6 -> 0 | G5: =IF('Input Sheet'!F6="Triangular","T",IF('Input Sheet'!F6="Constant","C",IF('Input Sheet'!F6="Uniform","U",IF('Input Sheet'!F6="Normal","N",IF('Input Sheet'!F6="Lognormal","L","No distribution selected."))))) -> No distribution selected.
A6: ReservoirTemperature | B6: oC | C6: ='Input Sheet'!B8 -> 0 | D6: ='Input Sheet'!C8 -> 0 | E6: ='Input Sheet'!D8 -> 0 | F6: ='Input Sheet'!E8 -> 0 | G6: =IF('Input Sheet'!F8="Triangular","T",IF('Input Sheet'!F8="Constant","C",IF('Input Sheet'!F8="Uniform","U",IF('Input Sheet'!F8="Normal","N",IF('Input Sheet'!F8="Lognormal","L","No distribution selected."))))) -> No distribution selected.
A7: AbandonTemperature | B7: oC | C7: 0 | D7: =IF(ISBLANK('Input Sheet'!C33),'Input Sheet'!B33,'Input Sheet'!C33) -> 70 | E7: 0 | F7: 0 | G7: =IF('Input Sheet'!F30="-", "C", IF('Input Sheet'!F30="Triangular","T",IF('Input Sheet'!F30="Constant","C",IF('Input Sheet'!F30="Uniform","U",IF('Input Sheet'!F30="Normal","N",IF('Input Sheet'!F30="Lognormal","L","C")))))) -> C
A8: Porosity | B8: % | C8: 0 | D8: =IF('Input Sheet'!B11=Tables!A122,0.3,0.06) -> 0.06 | E8: 0 | F8: 0.02 | G8: N
A9: RockSpecificHeat | B9: kJ/kg-oC | C9: =VLOOKUP('Input Sheet'!B$11,Tables!A$46:D$60,3,FALSE) -> 0.97 | D9: =VLOOKUP('Input Sheet'!B11,Tables!A46:D60,2,FALSE) -> 1.07 | E9: =VLOOKUP('Input Sheet'!B11,Tables!A46:D60,4,FALSE) -> 1.17 | G9: T
A10: WaterSpecificHeat | B10: kJ/kg-oC | C10: 0 | D10: =VLOOKUP('Input Sheet'!C8,Tables!A64:B104,2,TRUE) ->  | E10: 0 | G10: C
A11: RockDensity | B11: kg/m3 | C11: 0 | D11: =VLOOKUP('Input Sheet'!B11,Tables!A107:C122,3,FALSE) -> 2600 | E11: 0 | G11: C
A12: WaterDensity | B12: kg/m3 | C12: 0 | D12: =VLOOKUP('Input Sheet'!C8,Tables!A128:B179,2,TRUE) ->  | E12: 0 | G12: C
A13: RecoveryFactor | B13: % | C13: 0.08 | D13: 0.14 | E13: 0.2 | G13: U
A14: ConversionEfficiency | B14: % | C14: =IF(ISBLANK('Input Sheet'!D27),'Input Sheet'!C26,'Input Sheet'!D26) -> - | D14: =IF(ISBLANK('Input Sheet'!D27),'Input Sheet'!C27,'Input Sheet'!D27) -> 0.08 | E14: =IF(ISBLANK('Input Sheet'!D27),'Input Sheet'!C28,'Input Sheet'!D28) -> - | F14: ='Input Sheet'!D29 -> 0 | G14: =IF('Input Sheet'!D30="-","C",IF('Input Sheet'!D30="Triangular","T",IF('Input Sheet'!D30="Constant","C",IF('Input Sheet'!D30="Uniform","U",IF('Input Sheet'!D30="Normal","N",IF('Input Sheet'!D30="Lognormal","L","C")))))) -> C
A15: PowerFactor | B15: % | C15: 0.9 | D15: 0.95 | E15: 1 | G15: T
A16: LifeSpan | B16: years | C16: 0 | D16: =IF(ISBLANK('Input Sheet'!C20),'Input Sheet'!B20,'Input Sheet'!C20) -> 30 | E16: 0 | G16: C
A17: UtilizationFactor (Direct Use) | B17: % | C17: =IF(ISBLANK('Input Sheet'!D55),'Input Sheet'!C54,'Input Sheet'!D54) -> 0.4 | D17: =IF(ISBLANK('Input Sheet'!D55),'Input Sheet'!C55,'Input Sheet'!D55) -> 0.48 | E17: =IF(ISBLANK('Input Sheet'!D55),'Input Sheet'!C56,'Input Sheet'!D56) -> 0.5 | F17: =IF(ISBLANK('Input Sheet'!D55),'Input Sheet'!C57,'Input Sheet'!D57) -> - | G17: =IF('Input Sheet'!D58="-","U", IF('Input Sheet'!D58="Triangular","T",IF('Input Sheet'!D58="Constant","C",IF('Input Sheet'!D58="Uniform","U",IF('Input Sheet'!D58="Normal","N",IF('Input Sheet'!D58="Lognormal","L","U")))))) -> U
A18: Thermal Efficiency (Direct Use) | B18: % | C18: =IF(ISBLANK('Input Sheet'!D40),'Input Sheet'!C39,'Input Sheet'!D39) -> 0.6 | D18: =IF(ISBLANK('Input Sheet'!D40),'Input Sheet'!C40,'Input Sheet'!D40) -> 0.7 | E18: =IF(ISBLANK('Input Sheet'!D40),'Input Sheet'!C41,'Input Sheet'!D41) -> 0.8 | F18: =IF(ISBLANK('Input Sheet'!D42),'Input Sheet'!C42,'Input Sheet'!D42) -> 0 | G18: =IF('Input Sheet'!D43="-","U", IF('Input Sheet'!D43="Triangular","T",IF('Input Sheet'!D43="Constant","C",IF('Input Sheet'!D43="Uniform","U",IF('Input Sheet'!D43="Normal","N",IF('Input Sheet'!D43="Lognormal","L","U")))))) -> U
A19: Use Temperature | B19: C | C19: 0 | D19: ='Input Sheet'!C8 -> 0 | E19: 0 | G19: C
A20: Flow Rate | B20: L/s | C20: ='Input Sheet'!B9 -> 0 | D20: ='Input Sheet'!C9 -> 0 | E20: ='Input Sheet'!D9 -> 0 | F20: ='Input Sheet'!E9 -> 0 | G20: =IF('Input Sheet'!F9="Triangular","T",IF('Input Sheet'!F9="Constant","C",IF('Input Sheet'!F9="Uniform","U",IF('Input Sheet'!F9="Normal","N",IF('Input Sheet'!F9="Lognormal","L","T"))))) -> T

Sheet Monte Carlo Calculations
A1: Random numbers for use in distribution (minimize these) | T1: Volumetric: Qr+w | U1: DU: Qr+w (accessible resource base) | V1: Volumetric: P | W1: Power Density | X1: Power using flow rate | Y1: DU: Resource (with factors) | Z1: DU: Beneficial heat using Flow rate | AA1: Total MW available
A2: 1 | B2: =+INDEX(B$15:B$10015,newrun,0) -> Input parameters incomplete | C2: =+INDEX(C$15:C$10015,newrun,0) -> Input parameters incomplete | D2: =+INDEX(D$15:D$10015,newrun,0) -> Input parameters incomplete | E2: =+INDEX(E$15:E$10015,newrun,0) -> Input parameters incomplete | F2: =+INDEX(F$15:F$10015,newrun,0) -> 105.36 | G2: =+INDEX(G$15:G$10015,newrun,0) -> 0.06100333541 | H2: =+INDEX(H$15:H$10015,newrun,0) -> 1.034036996 | I2: =+INDEX(I$15:I$10015,newrun,0) -> 5.65 | J2: =+INDEX(J$15:J$10015,newrun,0) -> 2600 | K2: =+INDEX(K$15:K$10015,newrun,0) -> 714 | L2: =+INDEX(L$15:L$10015,newrun,0) -> 0.1508603232 | M2: =+INDEX(M$15:M$10015,newrun,0) -> 0.08 | N2: =+INDEX(N$15:N$10015,newrun,0) -> 0.9522474332 | O2: =+INDEX(O$15:O$10015,newrun,0) -> 30 | P2: =+INDEX(P$15:P$10015,newrun,0) -> 0.46862066 | Q2: =+INDEX(Q$15:Q$10015,newrun,0) -> 0.7604680732 | R2: =+INDEX(R$15:R$10015,newrun,0) -> 0 | S2: Model--> | T2: =IF(D12=0, (('Monte Carlo Calculations'!J2*'Monte Carlo Calculations'!H2*(1-'Monte Carlo Calculations'!G2)+'Monte Carlo Calculations'!K2*'Monte Carlo Calculations'!I2*'Monte Carlo Calculations'!G2)*('Monte Carlo Calculations'!B2*1000000)*'Monte Carlo Calculations'!C2*('Monte Carlo Calculations'!E2-'Monte Carlo Calculations'!F2)), (('Monte Carlo Calculations'!J2*'Monte Carlo Calculations'!H2*(1-'Monte Carlo Calculations'!G2)+'Monte Carlo Calculations'!K2*'Monte Carlo Calculations'!I2*'Monte Carlo Calculations'!G2)*('Monte Carlo Calculations'!D2*1000000000)*('Monte Carlo Calculations'!E2-'Monte Carlo Calculations'!F2))) ->  | U2: =IF(D12=0, (('Monte Carlo Calculations'!J2*'Monte Carlo Calculations'!H2*(1-'Monte Carlo Calculations'!G2)+'Monte Carlo Calculations'!K2*'Monte Carlo Calculations'!I2*'Monte Carlo Calculations'!G2)*('Monte Carlo Calculations'!B2*1000000)*'Monte Carlo Calculations'!C2*('Monte Carlo Calculations'!E2-S9)), (('Monte Carlo Calculations'!J2*'Monte Carlo Calculations'!H2*(1-'Monte Carlo Calculations'!G2)+'Monte Carlo Calculations'!K2*'Monte Carlo Calculations'!I2*'Monte Carlo Calculations'!G2)*('Monte Carlo Calculations'!D2*1000000000)*('Monte Carlo Calculations'!E2-S9))) ->  | V2: =((T2*L2*M2)/(N2*O2*31540000000)) ->  | W2: =IF('Input Sheet'!B12="Primarily compressional Arc-volcanic setting",9.7*B2,(0.0484*EXP(0.0144*E2)*B2)) ->  | X2: =(R2*(E2-F2)*I2*1000*M2*K2)/(N2*10^9) ->  | Y2: =((U2*L2*Q2)/(P2*O2*31540000000)) ->  | Z2: =(R2*(E2-S9)*I2*Q2*K2)/(P2*10^9) ->  | AA2: =((U2*L2)/(O2*31540000000)) -> 
A3: ↑ cell above is named "CurrentRun" to use in VBA ↑
A4: iterations | B4: ='Input Sheet'!B14 -> 1000
B6: Area | C6: Thickness | D6: Volume | E6: Reservoir Temperature | F6: Abandonment Temperature | G6: Porosity | H6: Rock Specific Heat | I6: Water Specific Heat | J6: Rock Density | K6: Water Density | L6: Recovery Factor | M6: Conversion Efficiency | N6: Power Factor | O6: Life Span | P6: Capacity/utilization/load Factor - DU/Cascaded | Q6: Heat exchange efficiency | R6: Flow Rate | S6: Reference Temp
A7: Range of triangular distribution | B7: =+RAND() -> 0.1440542641 | C7: =+RAND() -> 0.9782096118 | D7: 0.3313333248 | E7: 0.4310413798 | F7: 0.1715121439 | G7: 0.910287241 | H7: 0.1217838566 | I7: 0.8805292454 | J7: 0.6393309053 | K7: 0.01061019186 | L7: 0.1383085368 | M7: 0.1797831121 | N7: 0.02532098472 | O7: 0.8644831844 | P7: 0.9391948349 | Q7: 0.9229523606 | R7: 0.3781881025
A8: Min | B8: ='Equation inputs+defaults'!C3 -> 0 | C8: ='Equation inputs+defaults'!C4 -> 0 | D8: ='Equation inputs+defaults'!C5 -> 0 | E8: ='Equation inputs+defaults'!C6 -> 0 | F8: ='Equation inputs+defaults'!C7 -> 0 | G8: ='Equation inputs+defaults'!C8 -> 0 | H8: ='Equation inputs+defaults'!C9 -> 0.97 | I8: ='Equation inputs+defaults'!C10 -> 0 | J8: ='Equation inputs+defaults'!C11 -> 0 | K8: ='Equation inputs+defaults'!C12 -> 0 | L8: ='Equation inputs+defaults'!C13 -> 0.08 | M8: ='Equation inputs+defaults'!C14 -> - | N8: ='Equation inputs+defaults'!C15 -> 0.9 | O8: ='Equation inputs+defaults'!C16 -> 0 | P8: ='Equation inputs+defaults'!C17 -> 0.4 | Q8: ='Equation inputs+defaults'!C18 -> 0.6 | R8: ='Equation inputs+defaults'!C20 -> 0
A9: Mean | B9: ='Equation inputs+defaults'!D3 -> 0 | C9: ='Equation inputs+defaults'!D4 -> 0 | D9: ='Equation inputs+defaults'!D5 -> 0 | E9: ='Equation inputs+defaults'!D6 -> 0 | F9: ='Equation inputs+defaults'!D7 -> 70 | G9: ='Equation inputs+defaults'!D8 -> 0.06 | H9: ='Equation inputs+defaults'!D9 -> 1.07 | I9: ='Equation inputs+defaults'!D10 ->  | J9: ='Equation inputs+defaults'!D11 -> 2600 | K9: ='Equation inputs+defaults'!D12 ->  | L9: ='Equation inputs+defaults'!D13 -> 0.14 | M9: ='Equation inputs+defaults'!D14 -> 0.08 | N9: ='Equation inputs+defaults'!D15 -> 0.95 | O9: ='Equation inputs+defaults'!D16 -> 30 | P9: ='Equation inputs+defaults'!D17 -> 0.48 | Q9: ='Equation inputs+defaults'!D18 -> 0.7 | R9: ='Equation inputs+defaults'!D20 -> 0 | S9: =IF(ISBLANK('Input Sheet'!C46),'Input Sheet'!B46,'Input Sheet'!C46) -> 15
A10: Max | B10: ='Equation inputs+defaults'!E3 -> 0 | C10: ='Equation inputs+defaults'!E4 -> 0 | D10: ='Equation inputs+defaults'!E5 -> 0 | E10: ='Equation inputs+defaults'!E6 -> 0 | F10: ='Equation inputs+defaults'!E7 -> 0 | G10: ='Equation inputs+defaults'!E8 -> 0 | H10: ='Equation inputs+defaults'!E9 -> 1.17 | I10: ='Equation inputs+defaults'!E10 -> 0 | J10: ='Equation inputs+defaults'!E11 -> 0 | K10: ='Equation inputs+defaults'!E12 -> 0 | L10: ='Equation inputs+defaults'!E13 -> 0.2 | M10: ='Equation inputs+defaults'!E14 -> - | N10: ='Equation inputs+defaults'!E15 -> 1 | O10: ='Equation inputs+defaults'!E16 -> 0 | P10: ='Equation inputs+defaults'!E17 -> 0.5 | Q10: ='Equation inputs+defaults'!E18 -> 0.8 | R10: ='Equation inputs+defaults'!E20 -> 0
A11: Std. Dev | B11: ='Equation inputs+defaults'!F3 -> 0 | C11: ='Equation inputs+defaults'!F4 -> 0 | D11: ='Equation inputs+defaults'!F5 -> 0 | E11: ='Equation inputs+defaults'!F6 -> 0 | F11: ='Equation inputs+defaults'!F7 -> 0 | G11: ='Equation inputs+defaults'!F8 -> 0.02 | H11: ='Equation inputs+defaults'!F9 -> 0 | I11: ='Equation inputs+defaults'!F10 -> 0 | J11: ='Equation inputs+defaults'!F11 -> 0 | K11: ='Equation inputs+defaults'!F12 -> 0 | L11: ='Equation inputs+defaults'!F13 -> 0 | M11: ='Equation inputs+defaults'!F14 -> 0 | N11: ='Equation inputs+defaults'!F15 -> 0 | O11: ='Equation inputs+defaults'!F16 -> 0 | P11: ='Equation inputs+defaults'!F17 -> - | Q11: ='Equation inputs+defaults'!F18 -> 0 | R11: ='Equation inputs+defaults'!F20 -> 0
A12: One calculation for input parameters: | B12: =IF('Equation inputs+defaults'!G3="T",(IF((B10<>B8),IF(B7<=(B9-B8)/(B10-B8),B8+SQRT(B7*(B10-B8)*(B9-B8)),B10-SQRT((1-B7)*(B10-B8)*(-B9+B10))),B9)),IF('Equation inputs+defaults'!G3="N",_xlfn.NORM.INV(B7,B9,B11),IF('Equation inputs+defaults'!G3="L",_xlfn.LOGNORM.INV(B7,B9,B11),IF('Equation inputs+defaults'!G3="C",B9,IF('Equation inputs+defaults'!G3="U",B7*(B10-B8)+B8,"Input parameters incomplete"))))) -> Input parameters incomplete | C12: =IF('Equation inputs+defaults'!G4="T",(IF((C10<>C8),IF(C7<=(C9-C8)/(C10-C8),C8+SQRT(C7*(C10-C8)*(C9-C8)),C10-SQRT((1-C7)*(C10-C8)*(-C9+C10))),C9)),IF('Equation inputs+defaults'!G4="N",_xlfn.NORM.INV(C7,C9,C11),IF('Equation inputs+defaults'!G4="L",_xlfn.LOGNORM.INV(C7,C9,C11),IF('Equation inputs+defaults'!G4="C",C9,IF('Equation inputs+defaults'!G4="U",C7*(C10-C8)+C8,"Input parameters incomplete"))))) -> Input parameters incomplete | D12: =IF('Equation inputs+defaults'!G5="T",(IF((D10<>D8),IF(D7<=(D9-D8)/(D10-D8),D8+SQRT(D7*(D10-D8)*(D9-D8)),D10-SQRT((1-D7)*(D10-D8)*(-D9+D10))),D9)),IF('Equation inputs+defaults'!G5="N",_xlfn.NORM.INV(D7,D9,D11),IF('Equation inputs+defaults'!G5="L",_xlfn.LOGNORM.INV(D7,D9,D11),IF('Equation inputs+defaults'!G5="C",D9,IF('Equation inputs+defaults'!G5="U",D7*(D10-D8)+D8,"Input parameters incomplete"))))) -> Input parameters incomplete | E12: =IF('Equation inputs+defaults'!G6="T",(IF((E10<>E8),IF(E7<=(E9-E8)/(E10-E8),E8+SQRT(E7*(E10-E8)*(E9-E8)),E10-SQRT((1-E7)*(E10-E8)*(-E9+E10))),E9)),IF('Equation inputs+defaults'!G6="N",_xlfn.NORM.INV(E7,E9,E11),IF('Equation inputs+defaults'!G6="L",_xlfn.LOGNORM.INV(E7,E9,E11),IF('Equation inputs+defaults'!G6="C",E9,IF('Equation inputs+defaults'!G6="U",E7*(E10-E8)+E8,"Input parameters incomplete"))))) -> Input parameters incomplete | F12: =IF('Equation inputs+defaults'!G7="T",(IF((F10<>F8),IF(F7<=(F9-F8)/(F10-F8),F8+SQRT(F7*(F10-F8)*(F9-F8)),F10-SQRT((1-F7)*(F10-F8)*(-F9+F10))),F9)),IF('Equation inputs+defaults'!G7="N",_xlfn.NORM.INV(F7,F9,F11),IF('Equation inputs+defaults'!G7="L",_xlfn.LOGNORM.INV(F7,F9,F11),IF('Equation inputs+defaults'!G7="C",F9,IF('Equation inputs+defaults'!G7="U",F7*(F10-F8)+F8,"Input parameters incomplete"))))) -> 70 | G12: =IF('Equation inputs+defaults'!G8="T",(IF((G10<>G8),IF(G7<=(G9-G8)/(G10-G8),G8+SQRT(G7*(G10-G8)*(G9-G8)),G10-SQRT((1-G7)*(G10-G8)*(-G9+G10))),G9)),IF('Equation inputs+defaults'!G8="N",_xlfn.NORM.INV(G7,G9,G11),IF('Equation inputs+defaults'!G8="L",_xlfn.LOGNORM.INV(G7,G9,G11),IF('Equation inputs+defaults'!G8="C",G9,IF('Equation inputs+defaults'!G8="U",G7*(G10-G8)+G8,"Input parameters incomplete"))))) -> 0.08685051926 | H12: =IF('Equation inputs+defaults'!G9="T",(IF((H10<>H8),IF(H7<=(H9-H8)/(H10-H8),H8+SQRT(H7*(H10-H8)*(H9-H8)),H10-SQRT((1-H7)*(H10-H8)*(-H9+H10))),H9)),IF('Equation inputs+defaults'!G9="N",_xlfn.NORM.INV(H7,H9,H11),IF('Equation inputs+defaults'!G9="L",_xlfn.LOGNORM.INV(H7,H9,H11),IF('Equation inputs+defaults'!G9="C",H9,IF('Equation inputs+defaults'!G9="U",H7*(H10-H8)+H8,"Input parameters incomplete"))))) -> 1.01935258 | I12: =IF('Equation inputs+defaults'!G10="T",(IF((I10<>I8),IF(I7<=(I9-I8)/(I10-I8),I8+SQRT(I7*(I10-I8)*(I9-I8)),I10-SQRT((1-I7)*(I10-I8)*(-I9+I10))),I9)),IF('Equation inputs+defaults'!G10="N",_xlfn.NORM.INV(I7,I9,I11),IF('Equation inputs+defaults'!G10="L",_xlfn.LOGNORM.INV(I7,I9,I11),IF('Equation inputs+defaults'!G10="C",I9,IF('Equation inputs+defaults'!G10="U",I7*(I10-I8)+I8,"Input parameters incomplete"))))) ->  | J12: =IF('Equation inputs+defaults'!G11="T",(IF((J10<>J8),IF(J7<=(J9-J8)/(J10-J8),J8+SQRT(J7*(J10-J8)*(J9-J8)),J10-SQRT((1-J7)*(J10-J8)*(-J9+J10))),J9)),IF('Equation inputs+defaults'!G11="N",_xlfn.NORM.INV(J7,J9,J11),IF('Equation inputs+defaults'!G11="L",_xlfn.LOGNORM.INV(J7,J9,J11),IF('Equation inputs+defaults'!G11="C",J9,IF('Equation inputs+defaults'!G11="U",J7*(J10-J8)+J8,"Input parameters incomplete"))))) -> 2600 | K12: =IF('Equation inputs+defaults'!G12="T",(IF((K10<>K8),IF(K7<=(K9-K8)/(K10-K8),K8+SQRT(K7*(K10-K8)*(K9-K8)),K10-SQRT((1-K7)*(K10-K8)*(-K9+K10))),K9)),IF('Equation inputs+defaults'!G12="N",_xlfn.NORM.INV(K7,K9,K11),IF('Equation inputs+defaults'!G12="L",_xlfn.LOGNORM.INV(K7,K9,K11),IF('Equation inputs+defaults'!G12="C",K9,IF('Equation inputs+defaults'!G12="U",K7*(K10-K8)+K8,"Input parameters incomplete"))))) ->  | L12: =IF('Equation inputs+defaults'!G13="T",(IF((L10<>L8),IF(L7<=(L9-L8)/(L10-L8),L8+SQRT(L7*(L10-L8)*(L9-L8)),L10-SQRT((1-L7)*(L10-L8)*(-L9+L10))),L9)),IF('Equation inputs+defaults'!G13="N",_xlfn.NORM.INV(L7,L9,L11),IF('Equation inputs+defaults'!G13="L",_xlfn.LOGNORM.INV(L7,L9,L11),IF('Equation inputs+defaults'!G13="C",L9,IF('Equation inputs+defaults'!G13="U",L7*(L10-L8)+L8,"Input parameters incomplete"))))) -> 0.09659702441 | M12: =IF('Equation inputs+defaults'!G14="T",(IF((M10<>M8),IF(M7<=(M9-M8)/(M10-M8),M8+SQRT(M7*(M10-M8)*(M9-M8)),M10-SQRT((1-M7)*(M10-M8)*(-M9+M10))),M9)),IF('Equation inputs+defaults'!G14="N",_xlfn.NORM.INV(M7,M9,M11),IF('Equation inputs+defaults'!G14="L",_xlfn.LOGNORM.INV(M7,M9,M11),IF('Equation inputs+defaults'!G14="C",M9,IF('Equation inputs+defaults'!G14="U",M7*(M10-M8)+M8,"Input parameters incomplete"))))) -> 0.08 | N12: =IF('Equation inputs+defaults'!G15="T",(IF((N10<>N8),IF(N7<=(N9-N8)/(N10-N8),N8+SQRT(N7*(N10-N8)*(N9-N8)),N10-SQRT((1-N7)*(N10-N8)*(-N9+N10))),N9)),IF('Equation inputs+defaults'!G15="N",_xlfn.NORM.INV(N7,N9,N11),IF('Equation inputs+defaults'!G15="L",_xlfn.LOGNORM.INV(N7,N9,N11),IF('Equation inputs+defaults'!G15="C",N9,IF('Equation inputs+defaults'!G15="U",N7*(N10-N8)+N8,"Input parameters incomplete"))))) -> 0.9112518853 | O12: =IF('Equation inputs+defaults'!G16="T",(IF((O10<>O8),IF(O7<=(O9-O8)/(O10-O8),O8+SQRT(O7*(O10-O8)*(O9-O8)),O10-SQRT((1-O7)*(O10-O8)*(-O9+O10))),O9)),IF('Equation inputs+defaults'!G16="N",_xlfn.NORM.INV(O7,O9,O11),IF('Equation inputs+defaults'!G16="L",_xlfn.LOGNORM.INV(O7,O9,O11),IF('Equation inputs+defaults'!G16="C",O9,IF('Equation inputs+defaults'!G16="U",O7*(O10-O8)+O8,"Input parameters incomplete"))))) -> 30 | P12: =IF('Equation inputs+defaults'!G17="T",(IF((P10<>P8),IF(P7<=(P9-P8)/(P10-P8),P8+SQRT(P7*(P10-P8)*(P9-P8)),P10-SQRT((1-P7)*(P10-P8)*(-P9+P10))),P9)),IF('Equation inputs+defaults'!G17="N",_xlfn.NORM.INV(P7,P9,P11),IF('Equation inputs+defaults'!G17="L",_xlfn.LOGNORM.INV(P7,P9,P11),IF('Equation inputs+defaults'!G17="C",P9,IF('Equation inputs+defaults'!G17="U",P7*(P10-P8)+P8,"Input parameters incomplete"))))) -> 0.4939194835 | Q12: =IF('Equation inputs+defaults'!G18="T",(IF((Q10<>Q8),IF(Q7<=(Q9-Q8)/(Q10-Q8),Q8+SQRT(Q7*(Q10-Q8)*(Q9-Q8)),Q10-SQRT((1-Q7)*(Q10-Q8)*(-Q9+Q10))),Q9)),IF('Equation inputs+defaults'!G18="N",_xlfn.NORM.INV(Q7,Q9,Q11),IF('Equation inputs+defaults'!G18="L",_xlfn.LOGNORM.INV(Q7,Q9,Q11),IF('Equation inputs+defaults'!G18="C",Q9,IF('Equation inputs+defaults'!G18="U",Q7*(Q10-Q8)+Q8,"Input parameters incomplete"))))) -> 0.7845904721 | R12: =IF('Equation inputs+defaults'!G20="T",(IF((R10<>R8),IF(R7<=(R9-R8)/(R10-R8),R8+SQRT(R7*(R10-R8)*(R9-R8)),R10-SQRT((1-R7)*(R10-R8)*(-R9+R10))),R9)),IF('Equation inputs+defaults'!G20="N",_xlfn.NORM.INV(R7,R9,R11),IF('Equation inputs+defaults'!G20="L",_xlfn.LOGNORM.INV(R7,R9,R11),IF('Equation inputs+defaults'!G20="C",R9,IF('Equation inputs+defaults'!G20="U",R7*(R10-R8)+R8,"Input parameters incomplete"))))) -> 0
A14: Monte Carlo seed line number# | B14: Inputs/Seed | V14: Outputs/Results
B15: Input parameters incomplete | C15: Input parameters incomplete | D15: Input parameters incomplete | E15: Input parameters incomplete | F15: 105.36 | G15: 0.06100333541 | H15: 1.034036996 | I15: 5.65 | J15: 2600 | K15: 714 | L15: 0.1508603232 | M15: 0.08 | N15: 0.9522474332 | O15: 30 | P15: 0.46862066 | Q15: 0.7604680732 | R15: 0 | AA15: 168.7224418
B16: Input parameters incomplete | C16: Input parameters incomplete | D16: Input parameters incomplete | E16: Input parameters incomplete | F16: 105.36 | G16: 0.07198898152 | H16: 1.050461238 | I16: 5.65 | J16: 2600 | K16: 714 | L16: 0.09300443036 | M16: 0.08 | N16: 0.9386126701 | O16: 30 | P16: 0.4182973188 | Q16: 0.7577769037 | R16: 0 | AA16: 147.9238786
B17: Input parameters incomplete | C17: Input parameters incomplete | D17: Input parameters incomplete | E17: Input parameters incomplete | F17: 105.36 | G17: 0.0400206658 | H17: 1.066477456 | I17: 5.65 | J17: 2600 | K17: 714 | L17: 0.1686228923 | M17: 0.08 | N17: 0.9509889065 | O17: 30 | P17: 0.4935683768 | Q17: 0.6797510377 | R17: 0 | AA17: 277.8948471
B18: Input parameters incomplete | C18: Input parameters incomplete | D18: Input parameters incomplete | E18: Input parameters incomplete | F18: 105.36 | G18: 0.04313318493 | H18: 1.042254134 | I18: 5.65 | J18: 2600 | K18: 714 | L18: 0.1378473335 | M18: 0.08 | N18: 0.9729932139 | O18: 30 | P18: 0.4995569338 | Q18: 0.6452219296 | R18: 0 | AA18: 226.6271316
B19: Input parameters incomplete | C19: Input parameters incomplete | D19: Input parameters incomplete | E19: Input parameters incomplete | F19: 105.36 | G19: 0.07858479725 | H19: 1.013820615 | I19: 5.65 | J19: 2600 | K19: 714 | L19: 0.1408004538 | M19: 0.08 | N19: 0.9293219549 | O19: 30 | P19: 0.4203046201 | Q19: 0.7080559629 | R19: 0 | AA19: 244.4792411
B20: Input parameters incomplete | C20: Input parameters incomplete | D20: Input parameters incomplete | E20: Input parameters incomplete | F20: 105.36 | G20: 0.07085559152 | H20: 0.9950036683 | I20: 5.65 | J20: 2600 | K20: 714 | L20: 0.1037135983 | M20: 0.08 | N20: 0.9297685386 | O20: 30 | P20: 0.4007600475 | Q20: 0.6111314171 | R20: 0 | AA20: 182.6325757
B21: Input parameters incomplete | C21: Input parameters incomplete | D21: Input parameters incomplete | E21: Input parameters incomplete | F21: 105.36 | G21: 0.05147541866 | H21: 1.078532294 | I21: 5.65 | J21: 2600 | K21: 714 | L21: 0.1445990947 | M21: 0.08 | N21: 0.9547714711 | O21: 30 | P21: 0.4828293381 | Q21: 0.6981550058 | R21: 0 | AA21: 190.6561059
B22: Input parameters incomplete | C22: Input parameters incomplete | D22: Input parameters incomplete | E22: Input parameters incomplete | F22: 105.36 | G22: 0.06263469083 | H22: 1.128770424 | I22: 5.65 | J22: 2600 | K22: 714 | L22: 0.1648013032 | M22: 0.08 | N22: 0.9498993227 | O22: 30 | P22: 0.4414543343 | Q22: 0.7067215568 | R22: 0 | AA22: 182.0218382
B23: Input parameters incomplete | C23: Input parameters incomplete | D23: Input parameters incomplete | E23: Input parameters incomplete | F23: 105.36 | G23: 0.04650248593 | H23: 1.038707534 | I23: 5.65 | J23: 2600 | K23: 714 | L23: 0.1304980326 | M23: 0.08 | N23: 0.945939729 | O23: 30 | P23: 0.4838722374 | Q23: 0.7268701033 | R23: 0 | AA23: 252.9265686
B24: Input parameters incomplete | C24: Input parameters incomplete | D24: Input parameters incomplete | E24: Input parameters incomplete | F24: 105.36 | G24: 0.06091460843 | H24: 1.129711465 | I24: 5.65 | J24: 2600 | K24: 714 | L24: 0.1679755972 | M24: 0.08 | N24: 0.9347096641 | O24: 30 | P24: 0.491333569 | Q24: 0.712321128 | R24: 0 | AA24: 181.5565093
B25: Input parameters incomplete | C25: Input parameters incomplete | D25: Input parameters incomplete | E25: Input parameters incomplete | F25: 105.36 | G25: 0.08237545268 | H25: 1.100980174 | I25: 5.65 | J25: 2600 | K25: 714 | L25: 0.1647799407 | M25: 0.08 | N25: 0.9489741545 | O25: 30 | P25: 0.4374904881 | Q25: 0.6798337467 | R25: 0 | AA25: 288.9946903
B26: Input parameters incomplete | C26: Input parameters incomplete | D26: Input parameters incomplete | E26: Input parameters incomplete | F26: 105.36 | G26: 0.06942653807 | H26: 1.112971221 | I26: 5.65 | J26: 2600 | K26: 714 | L26: 0.1498275582 | M26: 0.08 | N26: 0.921407441 | O26: 30 | P26: 0.411842152 | Q26: 0.6666898872 | R26: 0 | AA26: 236.5339388
B27: Input parameters incomplete | C27: Input parameters incomplete | D27: Input parameters incomplete | E27: Input parameters incomplete | F27: 105.36 | G27: 0.07848323733 | H27: 1.066046054 | I27: 5.65 | J27: 2600 | K27: 714 | L27: 0.1665639071 | M27: 0.08 | N27: 0.9075748882 | O27: 30 | P27: 0.4397873935 | Q27: 0.7053628506 | R27: 0 | AA27: 127.2627625
B28: Input parameters incomplete | C28: Input parameters incomplete | D28: Input parameters incomplete | E28: Input parameters incomplete | F28: 105.36 | G28: 0.04012710378 | H28: 1.022723714 | I28: 5.65 | J28: 2600 | K28: 714 | L28: 0.1623119328 | M28: 0.08 | N28: 0.9424965178 | O28: 30 | P28: 0.4608196891 | Q28: 0.6549423087 | R28: 0 | AA28: 273.3323382
B29: Input parameters incomplete | C29: Input parameters incomplete | D29: Input parameters incomplete | E29: Input parameters incomplete | F29: 105.36 | G29: 0.02598171383 | H29: 1.007541306 | I29: 5.65 | J29: 2600 | K29: 714 | L29: 0.14014271 | M29: 0.08 | N29: 0.9403638751 | O29: 30 | P29: 0.4952828582 | Q29: 0.7938613136 | R29: 0 | AA29: 270.8427414
B30: Input parameters incomplete | C30: Input parameters incomplete | D30: Input parameters incomplete | E30: Input parameters incomplete | F30: 105.36 | G30: 0.0624101894 | H30: 1.08959394 | I30: 5.65 | J30: 2600 | K30: 714 | L30: 0.1942421587 | M30: 0.08 | N30: 0.9702844499 | O30: 30 | P30: 0.4973259361 | Q30: 0.6924295426 | R30: 0 | AA30: 116.4866404
B31: Input parameters incomplete | C31: Input parameters incomplete | D31: Input parameters incomplete | E31: Input parameters incomplete | F31: 105.36 | G31: 0.04185704859 | H31: 1.079705727 | I31: 5.65 | J31: 2600 | K31: 714 | L31: 0.1485326773 | M31: 0.08 | N31: 0.9698339225 | O31: 30 | P31: 0.47960403 | Q31: 0.7200371085 | R31: 0 | AA31: 222.9008504
B32: Input parameters incomplete | C32: Input parameters incomplete | D32: Input parameters incomplete | E32: Input parameters incomplete | F32: 105.36 | G32: 0.04290592001 | H32: 1.088814424 | I32: 5.65 | J32: 2600 | K32: 714 | L32: 0.1978582749 | M32: 0.08 | N32: 0.9513466303 | O32: 30 | P32: 0.4207115522 | Q32: 0.6073746348 | R32: 0 | AA32: 116.9252364
B33: Input parameters incomplete | C33: Input parameters incomplete | D33: Input parameters incomplete | E33: Input parameters incomplete | F33: 105.36 | G33: 0.06282413537 | H33: 1.077203781 | I33: 5.65 | J33: 2600 | K33: 714 | L33: 0.1191729087 | M33: 0.08 | N33: 0.9886726349 | O33: 30 | P33: 0.4490854397 | Q33: 0.7118641582 | R33: 0 | AA33: 126.1767148
B34: Input parameters incomplete | C34: Input parameters incomplete | D34: Input parameters incomplete | E34: Input parameters incomplete | F34: 105.36 | G34: 0.05311984836 | H34: 1.101185624 | I34: 5.65 | J34: 2600 | K34: 714 | L34: 0.1688801417 | M34: 0.08 | N34: 0.9954697092 | O34: 30 | P34: 0.4797144751 | Q34: 0.7623901909 | R34: 0 | AA34: 162.5869502
AA35: 231.9075566
B36: Inputs/Seed | AA36: 206.8857344
B37: Input parameters incomplete | C37: Input parameters incomplete | D37: Input parameters incomplete | E37: Input parameters incomplete | F37: 105.36 | G37: 0.06100333541 | H37: 1.034036996 | I37: 5.65 | J37: 2600 | K37: 714 | L37: 0.1508603232 | M37: 0.08 | N37: 0.9522474332 | O37: 30 | P37: 0.46862066 | Q37: 0.7604680732 | R37: 0 | AA37: 266.4095918
B38: Input parameters incomplete | C38: Input parameters incomplete | D38: Input parameters incomplete | E38: Input parameters incomplete | F38: 105.36 | G38: 0.07198898152 | H38: 1.050461238 | I38: 5.65 | J38: 2600 | K38: 714 | L38: 0.09300443036 | M38: 0.08 | N38: 0.9386126701 | O38: 30 | P38: 0.4182973188 | Q38: 0.7577769037 | R38: 0 | AA38: 180.551915
B39: Input parameters incomplete | C39: Input parameters incomplete | D39: Input parameters incomplete | E39: Input parameters incomplete | F39: 105.36 | G39: 0.0400206658 | H39: 1.066477456 | I39: 5.65 | J39: 2600 | K39: 714 | L39: 0.1686228923 | M39: 0.08 | N39: 0.9509889065 | O39: 30 | P39: 0.4935683768 | Q39: 0.6797510377 | R39: 0 | AA39: 112.8286735
B40: Input parameters incomplete | C40: Input parameters incomplete | D40: Input parameters incomplete | E40: Input parameters incomplete | F40: 105.36 | G40: 0.04313318493 | H40: 1.042254134 | I40: 5.65 | J40: 2600 | K40: 714 | L40: 0.1378473335 | M40: 0.08 | N40: 0.9729932139 | O40: 30 | P40: 0.4995569338 | Q40: 0.6452219296 | R40: 0 | AA40: 121.1689629
B41: Input parameters incomplete | C41: Input parameters incomplete | D41: Input parameters incomplete | E41: Input parameters incomplete | F41: 105.36 | G41: 0.07858479725 | H41: 1.013820615 | I41: 5.65 | J41: 2600 | K41: 714 | L41: 0.1408004538 | M41: 0.08 | N41: 0.9293219549 | O41: 30 | P41: 0.4203046201 | Q41: 0.7080559629 | R41: 0 | AA41: 146.0722957
B42: Input parameters incomplete | C42: Input parameters incomplete | D42: Input parameters incomplete | E42: Input parameters incomplete | F42: 105.36 | G42: 0.07085559152 | H42: 0.9950036683 | I42: 5.65 | J42: 2600 | K42: 714 | L42: 0.1037135983 | M42: 0.08 | N42: 0.9297685386 | O42: 30 | P42: 0.4007600475 | Q42: 0.6111314171 | R42: 0 | AA42: 180.895979
B43: Input parameters incomplete | C43: Input parameters incomplete | D43: Input parameters incomplete | E43: Input parameters incomplete | F43: 105.36 | G43: 0.05147541866 | H43: 1.078532294 | I43: 5.65 | J43: 2600 | K43: 714 | L43: 0.1445990947 | M43: 0.08 | N43: 0.9547714711 | O43: 30 | P43: 0.4828293381 | Q43: 0.6981550058 | R43: 0 | AA43: 174.5263455
B44: Input parameters incomplete | C44: Input parameters incomplete | D44: Input parameters incomplete | E44: Input parameters incomplete | F44: 105.36 | G44: 0.06263469083 | H44: 1.128770424 | I44: 5.65 | J44: 2600 | K44: 714 | L44: 0.1648013032 | M44: 0.08 | N44: 0.9498993227 | O44: 30 | P44: 0.4414543343 | Q44: 0.7067215568 | R44: 0 | AA44: 222.2453125
B45: Input parameters incomplete | C45: Input parameters incomplete | D45: Input parameters incomplete | E45: Input parameters incomplete | F45: 105.36 | G45: 0.04650248593 | H45: 1.038707534 | I45: 5.65 | J45: 2600 | K45: 714 | L45: 0.1304980326 | M45: 0.08 | N45: 0.945939729 | O45: 30 | P45: 0.4838722374 | Q45: 0.7268701033 | R45: 0 | AA45: 263.201015
B46: Input parameters incomplete | C46: Input parameters incomplete | D46: Input parameters incomplete | E46: Input parameters incomplete | F46: 105.36 | G46: 0.06091460843 | H46: 1.129711465 | I46: 5.65 | J46: 2600 | K46: 714 | L46: 0.1679755972 | M46: 0.08 | N46: 0.9347096641 | O46: 30 | P46: 0.491333569 | Q46: 0.712321128 | R46: 0 | V46: Outputs/Results | AA46: 155.6952676
B47: Input parameters incomplete | C47: Input parameters incomplete | D47: Input parameters incomplete | E47: Input parameters incomplete | F47: 105.36 | G47: 0.08237545268 | H47: 1.100980174 | I47: 5.65 | J47: 2600 | K47: 714 | L47: 0.1647799407 | M47: 0.08 | N47: 0.9489741545 | O47: 30 | P47: 0.4374904881 | Q47: 0.6798337467 | R47: 0 | AA47: 234.0706476
B48: Input parameters incomplete | C48: Input parameters incomplete | D48: Input parameters incomplete | E48: Input parameters incomplete | F48: 105.36 | G48: 0.06942653807 | H48: 1.112971221 | I48: 5.65 | J48: 2600 | K48: 714 | L48: 0.1498275582 | M48: 0.08 | N48: 0.921407441 | O48: 30 | P48: 0.411842152 | Q48: 0.6666898872 | R48: 0 | AA48: 183.7171989
B49: Input parameters incomplete | C49: Input parameters incomplete | D49: Input parameters incomplete | E49: Input parameters incomplete | F49: 105.36 | G49: 0.07848323733 | H49: 1.066046054 | I49: 5.65 | J49: 2600 | K49: 714 | L49: 0.1665639071 | M49: 0.08 | N49: 0.9075748882 | O49: 30 | P49: 0.4397873935 | Q49: 0.7053628506 | R49: 0 | AA49: 146.9562661
B50: Input parameters incomplete | C50: Input parameters incomplete | D50: Input parameters incomplete | E50: Input parameters incomplete | F50: 105.36 | G50: 0.04012710378 | H50: 1.022723714 | I50: 5.65 | J50: 2600 | K50: 714 | L50: 0.1623119328 | M50: 0.08 | N50: 0.9424965178 | O50: 30 | P50: 0.4608196891 | Q50: 0.6549423087 | R50: 0 | AA50: 119.1552094
B51: Input parameters incomplete | C51: Input parameters incomplete | D51: Input parameters incomplete | E51: Input parameters incomplete | F51: 105.36 | G51: 0.02598171383 | H51: 1.007541306 | I51: 5.65 | J51: 2600 | K51: 714 | L51: 0.14014271 | M51: 0.08 | N51: 0.9403638751 | O51: 30 | P51: 0.4952828582 | Q51: 0.7938613136 | R51: 0 | AA51: 207.1682003
B52: Input parameters incomplete | C52: Input parameters incomplete | D52: Input parameters incomplete | E52: Input parameters incomplete | F52: 105.36 | G52: 0.0624101894 | H52: 1.08959394 | I52: 5.65 | J52: 2600 | K52: 714 | L52: 0.1942421587 | M52: 0.08 | N52: 0.9702844499 | O52: 30 | P52: 0.4973259361 | Q52: 0.6924295426 | R52: 0 | AA52: 267.1548443
B53: Input parameters incomplete | C53: Input parameters incomplete | D53: Input parameters incomplete | E53: Input parameters incomplete | F53: 105.36 | G53: 0.04185704859 | H53: 1.079705727 | I53: 5.65 | J53: 2600 | K53: 714 | L53: 0.1485326773 | M53: 0.08 | N53: 0.9698339225 | O53: 30 | P53: 0.47960403 | Q53: 0.7200371085 | R53: 0 | AA53: 276.0395253
B54: Input parameters incomplete | C54: Input parameters incomplete | D54: Input parameters incomplete | E54: Input parameters incomplete | F54: 105.36 | G54: 0.04290592001 | H54: 1.088814424 | I54: 5.65 | J54: 2600 | K54: 714 | L54: 0.1978582749 | M54: 0.08 | N54: 0.9513466303 | O54: 30 | P54: 0.4207115522 | Q54: 0.6073746348 | R54: 0 | AA54: 180.8606429
AA55: 281.2991097
AA56: 117.4749547
AA57: 281.5882415
AA58: 189.421009
AA59: 261.5442507
AA60: 137.899735
AA61: 256.0795893
AA62: 161.8102235
AA63: 239.7375645
AA64: 160.420858
AA65: 164.1454568
AA66: 155.5653756
AA67: 183.924163
AA68: 228.2936061
AA69: 305.1164259
AA70: 225.0617508
AA71: 133.5754075
AA72: 162.9022314
AA73: 211.3649737
AA74: 276.1533298
AA75: 223.2388766
AA76: 170.914931
AA77: 173.3048893
AA78: 196.1027187
AA79: 225.2527242
AA80: 279.0572541
AA81: 253.4139685
AA82: 158.735565
AA83: 176.688705
AA84: 184.4853357
AA85: 222.719688
AA86: 252.2133088
AA87: 208.7008295
AA88: 252.5485844
AA89: 192.6815271
AA90: 109.8324565
AA91: 233.4673741
AA92: 177.7247704
AA93: 202.2487231
AA94: 128.754688
AA95: 226.6961223
AA96: 130.2335967
AA97: 140.8966194
AA98: 204.7176502
AA99: 250.4672656
AA100: 136.1037142
AA101: 211.9826992
AA102: 189.5948102
AA103: 263.6360978
AA104: 300.5906596
AA105: 195.5394472
AA106: 237.547439
AA107: 265.5251834
AA108: 154.7046179
AA109: 211.2831011
AA110: 198.9942384
AA111: 235.7798068
AA112: 194.3822669
AA113: 262.7529573
AA114: 161.1381917
AA115: 135.8419381
AA116: 183.5411828
AA117: 259.3596135
AA118: 231.1259118
AA119: 154.787677
AA120: 284.6532943
AA121: 152.2627776
AA122: 194.5302269
AA123: 213.4287546
AA124: 253.0938036
AA125: 206.0298075
AA126: 201.5654103
AA127: 259.0405778
AA128: 245.6879084
AA129: 183.6154064
AA130: 294.9975024
AA131: 163.414543
AA132: 161.9735041
AA133: 159.8573117
AA134: 150.9703849
AA135: 128.0213412
AA136: 284.9428268
AA137: 173.2500638
AA138: 130.125478
AA139: 200.4819947
AA140: 125.6314083
AA141: 280.6338665
AA142: 161.5989339
AA143: 131.5257883
AA144: 113.8991671
AA145: 125.3378063
AA146: 173.9283605
AA147: 188.6085521
AA148: 148.2142841
AA149: 251.0456524
AA150: 127.8477825
AA151: 227.083932
AA152: 126.9595551
AA153: 251.3115132
AA154: 120.4886464
AA155: 203.8297639
AA156: 135.0137893
AA157: 140.6155499
AA158: 133.0260278
AA159: 245.4199953
AA160: 245.286671
AA161: 255.9424899
AA162: 288.7231695
AA163: 266.7445064
AA164: 180.338892
AA165: 231.4956292
AA166: 242.6911079
AA167: 149.3271939
AA168: 164.5871202
AA169: 230.5694859
AA170: 220.2633028
AA171: 219.5490501
AA172: 260.0178217
AA173: 162.4863843
AA174: 294.6643498
AA175: 192.2964422
AA176: 238.2959164
AA177: 147.4318567
AA178: 264.9457743
AA179: 170.8134109
AA180: 265.3823438
AA181: 172.8035111
AA182: 233.640137
AA183: 162.3027208
AA184: 163.1704524
AA185: 278.1687298
AA186: 211.0739459
AA187: 236.5860569
AA188: 266.1039354
AA189: 170.3997822
AA190: 185.2560316
AA191: 115.6153124
AA192: 212.7282985
AA193: 187.229041
AA194: 191.4547511
AA195: 191.665077
AA196: 157.908316
AA197: 143.0954006
AA198: 278.8106591
AA199: 123.8382736
AA200: 173.3811522
AA201: 231.4516291
AA202: 177.9330317
... 1800 more rows

Sheet Tables
A1: Resource Size Indices
A2: This worksheet provides data to other worksheets - do not make edits to this worksheet
A4: Temperature | C4: Water saturation pressure | E4: Source
B5: bar | C5: [kPa], [100*bar] | D5: [atm] | E5: [psi]
A6: 0.01 | B6: =C6/100 -> 0.0061165 | C6: 0.61165 | D6: 0.006 | E6: 0.088712
A7: 2 | B7: 0.0070599 | C7: 0.70599 | D7: 0.007 | E7: 0.1024
A8: 4 | B8: 0.0081355 | C8: 0.81355 | D8: 0.008 | E8: 0.118
A9: 10 | B9: 0.012282 | C9: 1.2282 | D9: 0.0121 | E9: 0.17814
A10: 14 | B10: 0.01599 | C10: 1.599 | D10: 0.0158 | E10: 0.23192
A11: 18 | B11: 0.020647 | C11: 2.0647 | D11: 0.0204 | E11: 0.29946
A12: 20 | B12: 0.023393 | C12: 2.3393 | D12: 0.0231 | E12: 0.33929
A13: 25 | B13: 0.031699 | C13: 3.1699 | D13: 0.0313 | E13: 0.45976
A14: 30 | B14: 0.04247 | C14: 4.247 | D14: 0.0419 | E14: 0.61598
A15: 34 | B15: 0.053251 | C15: 5.3251 | D15: 0.0526 | E15: 0.77234
A16: 40 | B16: 0.073849 | C16: 7.3849 | D16: 0.0729 | E16: 1.0711
A17: 44 | B17: 0.091124 | C17: 9.1124 | D17: 0.0899 | E17: 1.3216
A18: 50 | B18: 0.12352 | C18: 12.352 | D18: 0.122 | E18: 1.7915
A19: 54 | B19: 0.15022 | C19: 15.022 | D19: 0.148 | E19: 2.1788
A20: 60 | B20: 0.19946 | C20: 19.946 | D20: 0.197 | E20: 2.8929
A21: 70 | B21: 0.31201 | C21: 31.201 | D21: 0.308 | E21: 4.5253
A22: 80 | B22: 0.47414 | C22: 47.414 | D22: 0.468 | E22: 6.8768
A23: 90 | B23: 0.70182 | C23: 70.182 | D23: 0.693 | E23: 10.179
A24: 96 | B24: 0.87771 | C24: 87.771 | D24: 0.866 | E24: 12.73
A25: 100 | B25: 1.0142 | C25: 101.42 | D25: 1.001 | E25: 14.71
A26: 110 | B26: 1.4338 | C26: 143.38 | D26: 1.42 | E26: 20.796
A27: 120 | B27: 1.9867 | C27: 198.67 | D27: 1.96 | E27: 28.815
A28: 130 | B28: 2.7028 | C28: 270.28 | D28: 2.67 | E28: 39.201
A29: 140 | B29: 3.6154 | C29: 361.54 | D29: 3.57 | E29: 52.437
A30: 150 | B30: 4.7616 | C30: 476.16 | D30: 4.7 | E30: 69.061
A31: 160 | B31: 6.1823 | C31: 618.23 | D31: 6.1 | E31: 89.667
A32: 180 | B32: 10.028 | C32: 1002.8 | D32: 9.9 | E32: 145.44
A33: 200 | B33: 15.549 | C33: 1554.9 | D33: 15.35 | E33: 225.52
A34: 220 | B34: 23.196 | C34: 2319.6 | D34: 22.89 | E34: 336.43
A35: 240 | B35: 33.469 | C35: 3346.9 | D35: 33.03 | E35: 485.43
A36: 260 | B36: 46.923 | C36: 4692.3 | D36: 46.31 | E36: 680.56
A37: 280 | B37: 64.166 | C37: 6416.6 | D37: 63.33 | E37: 930.65
A38: 300 | B38: 85.879 | C38: 8587.9 | D38: 84.76 | E38: 1245.6
A39: 320 | B39: 112.84 | C39: 11284 | D39: 111.4 | E39: 1636.6
A40: 340 | B40: 146.01 | C40: 14601 | D40: 144.1 | E40: 2117.7
A41: 360 | B41: 186.66 | C41: 18666 | D41: 184.2 | E41: 2707.3
A42: 370 | B42: 210.44 | C42: 21044 | D42: 207.7 | E42: 3052.2
A45: Rock type | B45: Specific heat capacity at 200 C (kJ/kg K) | C45: Specific heat capacity at 50-65 C (kJ/kg K) | D45: Specific heat capacity at 400 K | E45: Citation
A46: Granite | B46: 1.07 | C46: 0.95 | D46: 1.39
A47: Granodiorite | B47: 1.09 | C47: 0.97 | D47: 1.18
A48: Diorite | B48: 1.09 | C48: 0.99 | D48: 1.18
A49: Basalt | B49: 1.15 | C49: 1.04 | D49: 1.32
A50: Diabase | B50: 0.98 | C50: 0.87 | D50: 1.19
A51: Gabbro | B51: 1.1 | C51: 0.99 | D51: 1.18
A52: Gneiss | B52: 1.075 | C52: 0.925 | D52: 1.15
A53: Slate | B53: 1.1 | C53: 1 | D53: 1.2
A54: Quartzite | B54: 1.07 | C54: 0.97 | D54: 1.17
A55: Marble | B55: 1 | C55: 0.8 | D55: 1.1
A56: Sandstone | B56: 0.93 | C56: 0.85 | D56: 1.05
A57: Clay | B57: 1.08 | C57: 0.94 | D57: 1.51
A58: Shale | B58: 1.47 | C58: 0.978 | D58: 1.8
A59: Limestone | B59: 1 | C59: 0.9 | D59: 1.1
A60: - | B60: 0.8 | C60: 0.75 | D60: 0.88
A61: Water Specific Heat Capacity
A62: Temp | B62: Spec Heat
A63: C | B63: kJ/kg/K
A64: 0.01 | B64: 4.2199
A65: 10 | B65: 4.1955
A66: 20 | B66: 4.1844
A67: 25 | B67: 4.1816
A68: 30 | B68: 4.1801
A69: 40 | B69: 4.1796
A70: 50 | B70: 4.1815
A71: 60 | B71: 4.1851
A72: 70 | B72: 4.1902
A73: 80 | B73: 4.1969
A74: 90 | B74: 4.2053
A75: 100 | B75: 4.219
A76: 105 | B76: 4.226
A77: 110 | B77: 4.233
A78: 115 | B78: 4.24
A79: 120 | B79: 4.248
A80: 125 | B80: 4.26
A81: 130 | B81: 4.27
A82: 135 | B82: 4.28
A83: 140 | B83: 4.29
A84: 145 | B84: 4.3
A85: 150 | B85: 4.32
A86: 155 | B86: 4.34
A87: 160 | B87: 4.35
A88: 165 | B88: 4.36
A89: 170 | B89: 4.38
A90: 175 | B90: 4.39
A91: 180 | B91: 4.42
A92: 185 | B92: 4.45
A93: 190 | B93: 4.46
A94: 200 | B94: 4.51
A95: 220 | B95: 4.63
A96: 225 | B96: 4.65
A97: 240 | B97: 4.78
A98: 250 | B98: 4.87
A99: 260 | B99: 4.98
A100: 275 | B100: 5.2
A101: 300 | B101: 5.65
A102: 325 | B102: 6.86
A103: 350 | B103: 10.1
A104: 360 | B104: 14.6
A106: Rock densities
A107: Rock type | B107: Density (g/cm^3) | C107: Density (kg/m^3)
A108: Granite | B108: 2.64 | C108: 2640
A109: Granodiorite | B109: 2.73 | C109: 2730 | D109: #Unconsolidated sed with a mean for the density from USGS report, but could give the option of a data table to reference with the densities for other types of unconsolidated seds
A110: Diorite | B110: 2.85 | C110: 2850 | D110: #Ask Annamaria and Alison what they think
A111: Basalt | B111: 2.99 | C111: 2990 | D111: #And maybe Bart?
A112: Diabase | B112: 2.91 | C112: 2910
A113: Gabbro | B113: 3.03 | C113: 3030
A114: Gneiss | B114: 2.8 | C114: 2800
A115: Slate | B115: 2.79 | C115: 2790
A116: Quartzite | B116: 2.6 | C116: 2600
A117: Marble | B117: 2.75 | C117: 2750
A118: Sandstone | B118: 2.35 | C118: 2350
A119: Clay | B119: 2.21 | C119: 2210
A120: Shale | B120: 2.4 | C120: 2400
A121: Limestone | B121: 2.55 | C121: 2550
A122: - | B122: 1.53 | C122: 1530
A125: Water Density
A126: C | B126: kg/m^3
A127: Temp | B127: Density
A128: 0.1 | B128: 999.85
A129: 1 | B129: 999.9
A130: 4 | B130: 999.97
A131: 10 | B131: 999.7
A132: 15 | B132: 999.1
A133: 20 | B133: 998.21
A134: 25 | B134: 997.05
A135: 30 | B135: 995.65
A136: 35 | B136: 994.03
A137: 40 | B137: 992.22
A138: 45 | B138: 990.21
A139: 50 | B139: 988.04
A140: 55 | B140: 985.69
A141: 60 | B141: 983.2
A142: 65 | B142: 980.55
A143: 70 | B143: 977.76
A144: 75 | B144: 974.84
A145: 80 | B145: 971.79
A146: 85 | B146: 968.61
A147: 90 | B147: 965.31
A148: 95 | B148: 961.89
A149: 100 | B149: 958
A150: 105 | B150: 954
A151: 110 | B151: 951
A152: 115 | B152: 947
A153: 120 | B153: 943
A154: 125 | B154: 939
A155: 130 | B155: 935
A156: 135 | B156: 931
A157: 140 | B157: 926
A158: 145 | B158: 922
A159: 150 | B159: 918
A160: 155 | B160: 912
A161: 160 | B161: 907
A162: 165 | B162: 902
A163: 170 | B163: 897
A164: 175 | B164: 893
A165: 180 | B165: 887
A166: 185 | B166: 882
A167: 190 | B167: 876
A168: 195 | B168: 870
A169: 200 | B169: 864
A170: 220 | B170: 840
A171: 225 | B171: 834
A172: 240 | B172: 814
A173: 250 | B173: 799
A174: 260 | B174: 784
A175: 275 | B175: 756
A176: 300 | B176: 714
A177: 325 | B177: 654
A178: 350 | B178: 575
A179: 360 | B179: 528
A181: Tectonic Settings for Power Density Method
A182: Rift
A183: Large-scale arc setting with smaller-scale fault-based structures
A184: Primarily compressional Arc-volcanic setting (Hot Arc)
A185: Extensional Regime (Normal Fault-Based)
A186: Other
A188: Distribution Types
A189: Triangular
A190: Normal
A191: Lognormal
A192: Constant
A193: Uniform
A194: -
A195: Power Plant type
A196: Steam (dry/flash)
A197: Binary
A198: -
B199: Utilization/Load Factor
A200: Direct Use types | B200: Min | C200: Median/Mean | D200: Max
A201: Space Heating | B201: 0.3 | C201: 0.37 | D201: 0.4
A202: Greenhouse Heating | B202: 0.4 | C202: 0.48 | D202: 0.5
A203: Pool heating (aquaculture/balneology) | B203: 0.5 | C203: 0.54 | D203: 0.6
A204: Agricultural Drying | B204: 0.4 | C204: 0.41 | D204: 0.5
A205: Industrial | B205: 0.65 | C205: 0.7 | D205: 0.75
A206: Snow melting or cooling | B206: 0.1 | C206: 0.18 | D206: 0.3
A207: - | B207: - | C207: - | D207: -
